[Event "*** Titled Tuesday Blitz"]
[Site "Chess.com"]
[Date "2018.07.03"]
[Round "2"]
[White "Hrant_ChessMood"]
[Black "Muguet7"]
[Result "1-0"]
[WhiteElo "2898"]
[BlackElo "2334"]
[TimeControl "180+2"]
[EndTime "13:20:54 PDT"]
[Termination "Hrant_ChessMood won by resignation"]

1. e4 {[%clk 0:01:48.5]} 1... c5 {[%clk 0:02:59.5]} 2. Nf3 {[%clk 0:01:48.6]}
2... d6 {[%clk 0:03:00.3]} 3. d4 {[%clk 0:01:45.4]} 3... cxd4 {[%clk 0:03:00]}
4. Nxd4 {[%clk 0:01:47.3]} 4... Nf6 {[%clk 0:03:00.3]} 5. Nc3 {[%clk 0:01:44.4]}
5... a6 {[%clk 0:03:01.5]} 6. g3 {[%clk 0:01:41.5]} 6... e5 {[%clk 0:03:00.4]}
7. Nde2 {[%clk 0:01:41.6]} 7... Be6 {[%clk 0:02:59.3]} 8. Bg2 {[%clk 0:01:42.5]}
8... Nbd7 {[%clk 0:02:58.6]} 9. O-O {[%clk 0:01:42.4]} 9... Be7 {[%clk 0:02:59]}
10. Nd5 {[%clk 0:01:41.3]} 10... O-O {[%clk 0:02:55.6]} 11. Nec3 {[%clk
0:01:42.1]} 11... b5 {[%clk 0:02:45.8]} 12. Be3 {[%clk 0:01:31]} 12... Rc8
{[%clk 0:02:35]} 13. Qd2 {[%clk 0:01:30.8]} 13... Nxd5 {[%clk 0:02:09.1]} 14.
Nxd5 {[%clk 0:01:30.1]} 14... Nf6 {[%clk 0:02:02.6]} 15. Nxf6+ {[%clk 0:01:25]}
15... Bxf6 {[%clk 0:02:02]} 16. Rfd1 {[%clk 0:01:26.9]} 16... Be7 {[%clk
0:02:01]} 17. c3 {[%clk 0:01:27.1]} 17... Qc7 {[%clk 0:01:56.7]} 18. h4 {[%clk
0:01:25.9]} 18... Rfd8 {[%clk 0:01:54.7]} 19. Kh2 {[%clk 0:01:26.1]} 19... Bg4
{[%clk 0:01:53.8]} 20. Rdc1 {[%clk 0:01:25.2]} 20... Be6 {[%clk 0:01:54.1]} 21.
a4 {[%clk 0:01:25.9]} 21... Bb3 {[%clk 0:01:50.3]} 22. axb5 {[%clk 0:01:26.4]}
22... axb5 {[%clk 0:01:50.9]} 23. Ra7 {[%clk 0:01:27.5]} 23... Qc6 {[%clk
0:01:43.3]} 24. Rxe7 {[%clk 0:01:24.8]} 24... Be6 {[%clk 0:01:34.1]} 25. Ra1
{[%clk 0:01:23.7]} 25... Kf8 {[%clk 0:01:21.4]} 26. Rea7 {[%clk 0:01:21.3]}
26... Rb8 {[%clk 0:01:15.3]} 27. R1a6 {[%clk 0:01:22.4]} 1-0

[Event "*** Titled Tuesday Blitz"]
[Site "Chess.com"]
[Date "2018.07.03"]
[Round "2"]
[White "djogrodek1"]
[Black "Sordis"]
[Result "1-0"]
[WhiteElo "2469"]
[BlackElo "2284"]
[TimeControl "180+2"]
[EndTime "13:21:10 PDT"]
[Termination "djogrodek1 won by resignation"]

1. e4 {[%clk 0:03:01.3]} 1... c5 {[%clk 0:03:00.5]} 2. Nf3 {[%clk 0:03:02.2]}
2... d6 {[%clk 0:03:01.5]} 3. d4 {[%clk 0:03:03.2]} 3... cxd4 {[%clk 0:03:03.4]}
4. Nxd4 {[%clk 0:03:05.1]} 4... Nf6 {[%clk 0:03:04.7]} 5. Nc3 {[%clk 0:03:06.5]}
5... g6 {[%clk 0:03:06]} 6. Be3 {[%clk 0:03:07.3]} 6... Bg7 {[%clk 0:03:07.2]}
7. f3 {[%clk 0:03:08.6]} 7... O-O {[%clk 0:03:08.7]} 8. Qd2 {[%clk 0:03:10.1]}
8... Nc6 {[%clk 0:03:10.2]} 9. O-O-O {[%clk 0:03:11.6]} 9... d5 {[%clk
0:03:11.2]} 10. Qe1 {[%clk 0:03:13.2]} 10... e6 {[%clk 0:03:11.8]} 11. h4 {[%clk
0:03:07.3]} 11... Qc7 {[%clk 0:03:11.5]} 12. Ndb5 {[%clk 0:02:26]} 12... Qb8
{[%clk 0:03:11]} 13. exd5 {[%clk 0:02:23.3]} 13... exd5 {[%clk 0:03:11.8]} 14.
Qd2 {[%clk 0:02:20.4]} 14... Be6 {[%clk 0:03:05.6]} 15. Bf4 {[%clk 0:02:15.1]}
15... Qd8 {[%clk 0:02:57.4]} 16. g4 {[%clk 0:01:37.5]} 16... a6 {[%clk 0:02:07]}
17. Nc7 {[%clk 0:01:37.2]} 17... Rc8 {[%clk 0:02:07.8]} 18. Nxe6 {[%clk
0:01:38.4]} 18... fxe6 {[%clk 0:02:09.7]} 19. h5 {[%clk 0:01:39.7]} 19... e5
{[%clk 0:02:06.9]} 20. Bh6 {[%clk 0:01:40.1]} 20... d4 {[%clk 0:02:08.1]} 21.
Bxg7 {[%clk 0:01:34.2]} 21... Kxg7 {[%clk 0:01:54.9]} 22. hxg6 {[%clk
0:01:32.3]} 22... hxg6 {[%clk 0:01:51.8]} 23. Qh6+ {[%clk 0:01:29.3]} 23... Kf7
{[%clk 0:01:52.7]} 24. Bc4+ {[%clk 0:01:30.5]} 24... Ke7 {[%clk 0:01:50.7]} 25.
g5 {[%clk 0:01:24.4]} 25... Ng8 {[%clk 0:01:27.5]} 26. Qg7+ {[%clk 0:01:17.3]}
26... Ke8 {[%clk 0:01:28.3]} 27. Bxg8 {[%clk 0:01:15]} 27... Qe7 {[%clk
0:01:25.5]} 28. Qxg6+ {[%clk 0:01:08]} 28... Kd8 {[%clk 0:01:26.4]} 29. Rh7
{[%clk 0:00:59.4]} 29... Qd6 {[%clk 0:01:21.1]} 30. Qxd6+ {[%clk 0:00:59.2]} 1-0

[Event "*** Titled Tuesday Blitz"]
[Site "Chess.com"]
[Date "2018.07.03"]
[Round "2"]
[White "HanSchut"]
[Black "Kurai"]
[Result "0-1"]
[WhiteElo "2278"]
[BlackElo "2432"]
[TimeControl "180+2"]
[EndTime "13:21:19 PDT"]
[Termination "Kurai won by resignation"]

1. e4 {[%clk 0:03:01.9]} 1... e5 {[%clk 0:02:59.9]} 2. Nf3 {[%clk 0:02:58.6]}
2... Nc6 {[%clk 0:03:01.4]} 3. Bc4 {[%clk 0:02:57.8]} 3... Bc5 {[%clk
0:03:01.8]} 4. b4 {[%clk 0:02:58.4]} 4... Bb6 {[%clk 0:03:02.2]} 5. a4 {[%clk
0:02:58.9]} 5... a5 {[%clk 0:03:01.4]} 6. b5 {[%clk 0:02:58.5]} 6... Nd4 {[%clk
0:03:02.9]} 7. Nxd4 {[%clk 0:02:55.4]} 7... Bxd4 {[%clk 0:03:04]} 8. c3 {[%clk
0:02:56.5]} 8... Bc5 {[%clk 0:03:03.6]} 9. O-O {[%clk 0:02:50.7]} 9... Nf6
{[%clk 0:02:50.1]} 10. d4 {[%clk 0:02:51.3]} 10... d5 {[%clk 0:02:15.7]} 11.
exd5 {[%clk 0:02:28.2]} 11... exd4 {[%clk 0:02:16.2]} 12. Re1+ {[%clk
0:02:23.5]} 12... Be7 {[%clk 0:02:15.4]} 13. Qxd4 {[%clk 0:02:23.4]} 13... O-O
{[%clk 0:02:16.1]} 14. Bd3 {[%clk 0:02:13.5]} 14... Re8 {[%clk 0:02:04.9]} 15.
Nd2 {[%clk 0:01:41.9]} 15... Qxd5 {[%clk 0:02:03]} 16. Qxd5 {[%clk 0:01:27]}
16... Nxd5 {[%clk 0:02:04.9]} 17. c4 {[%clk 0:01:11.6]} 17... Nb4 {[%clk
0:01:57.5]} 18. Bb1 {[%clk 0:00:47.7]} 18... Be6 {[%clk 0:01:56.6]} 19. Ba3
{[%clk 0:00:44.3]} 19... Rad8 {[%clk 0:01:53.1]} 20. Nf3 {[%clk 0:00:37.2]}
20... Bf6 {[%clk 0:01:51]} 21. Bxb4 {[%clk 0:00:28.4]} 21... axb4 {[%clk
0:01:49.1]} 22. Ra2 {[%clk 0:00:27.5]} 22... Bxc4 {[%clk 0:01:49.8]} 23. Rxe8+
{[%clk 0:00:21.8]} 23... Rxe8 {[%clk 0:01:51.7]} 24. Rc2 {[%clk 0:00:22.2]}
24... Bc3 {[%clk 0:01:52.2]} 25. h3 {[%clk 0:00:18.3]} 25... Bb3 {[%clk
0:01:43.5]} 26. Rc1 {[%clk 0:00:17.9]} 26... Bxa4 {[%clk 0:01:44.7]} 0-1

[Event "*** Titled Tuesday Blitz"]
[Site "Chess.com"]
[Date "2018.07.03"]
[Round "2"]
[White "stolencandy13"]
[Black "dreamist"]
[Result "0-1"]
[WhiteElo "2310"]
[BlackElo "2584"]
[TimeControl "180+2"]
[EndTime "13:21:22 PDT"]
[Termination "dreamist won by resignation"]

1. e4 {[%clk 0:03:00.5]} 1... c5 {[%clk 0:02:59.1]} 2. Nf3 {[%clk 0:03:01.5]}
2... g6 {[%clk 0:03:00]} 3. d4 {[%clk 0:03:02.2]} 3... cxd4 {[%clk 0:03:01.1]}
4. Nxd4 {[%clk 0:03:04.1]} 4... Bg7 {[%clk 0:03:01.8]} 5. c4 {[%clk 0:03:04.8]}
5... Nc6 {[%clk 0:03:01.2]} 6. Be3 {[%clk 0:03:05.5]} 6... Nf6 {[%clk
0:02:53.6]} 7. Nc3 {[%clk 0:03:05.8]} 7... O-O {[%clk 0:02:51.3]} 8. Be2 {[%clk
0:03:07]} 8... d6 {[%clk 0:02:51.5]} 9. f3 {[%clk 0:03:06.5]} 9... Nxd4 {[%clk
0:02:50.5]} 10. Bxd4 {[%clk 0:03:07.4]} 10... Bd7 {[%clk 0:02:51.9]} 11. Qd2
{[%clk 0:03:08.4]} 11... Bc6 {[%clk 0:02:53.1]} 12. O-O {[%clk 0:03:09]} 12...
Nd7 {[%clk 0:02:54.3]} 13. Be3 {[%clk 0:03:09.6]} 13... a5 {[%clk 0:02:53.6]}
14. Rab1 {[%clk 0:03:04.1]} 14... Nc5 {[%clk 0:02:54.2]} 15. Rfc1 {[%clk
0:03:00]} 15... Qb6 {[%clk 0:02:54.1]} 16. b3 {[%clk 0:02:55.1]} 16... Rfc8
{[%clk 0:02:54.5]} 17. Bf1 {[%clk 0:02:55.1]} 17... h5 {[%clk 0:02:51.8]} 18.
Nd5 {[%clk 0:02:47.5]} 18... Bxd5 {[%clk 0:02:50.7]} 19. exd5 {[%clk 0:02:49.4]}
19... Qb4 {[%clk 0:02:49.3]} 20. Re1 {[%clk 0:02:23.2]} 20... Bc3 {[%clk
0:02:34.6]} 21. Qf2 {[%clk 0:02:13.1]} 21... Bxe1 {[%clk 0:02:34.9]} 22. Rxe1
{[%clk 0:02:15]} 22... e5 {[%clk 0:02:20.9]} 23. dxe6 {[%clk 0:01:44.3]} 23...
Nxe6 {[%clk 0:02:21.1]} 24. Qh4 {[%clk 0:01:30.6]} 24... Qc3 {[%clk 0:02:18.1]}
25. Kh1 {[%clk 0:01:19.1]} 25... Re8 {[%clk 0:02:15.9]} 26. Re2 {[%clk 0:00:47]}
26... Ng7 {[%clk 0:02:10.6]} 27. Bd4 {[%clk 0:00:35.2]} 27... Qc1 {[%clk
0:02:11]} 28. Rxe8+ {[%clk 0:00:17.9]} 28... Rxe8 {[%clk 0:02:11.2]} 29. Kg1
{[%clk 0:00:16.4]} 29... Nf5 {[%clk 0:02:09.1]} 30. Qf6 {[%clk 0:00:16.9]} 30...
Nxd4 {[%clk 0:02:09.9]} 31. Qxd4 {[%clk 0:00:18.8]} 31... Qe3+ {[%clk
0:02:10.5]} 32. Qxe3 {[%clk 0:00:19.7]} 32... Rxe3 {[%clk 0:02:12]} 33. Kf2
{[%clk 0:00:21.2]} 33... Rc3 {[%clk 0:02:13.6]} 34. Be2 {[%clk 0:00:20.1]} 34...
Rc2 {[%clk 0:02:14.3]} 35. a4 {[%clk 0:00:20.1]} 35... Rb2 {[%clk 0:02:15.3]}
36. Ke3 {[%clk 0:00:21.5]} 0-1

[Event "*** Titled Tuesday Blitz"]
[Site "Chess.com"]
[Date "2018.07.03"]
[Round "2"]
[White "VladimirBelous"]
[Black "gmcorrales"]
[Result "0-1"]
[WhiteElo "2671"]
[BlackElo "2652"]
[TimeControl "180+2"]
[EndTime "13:21:42 PDT"]
[Termination "gmcorrales won by resignation"]

1. c4 {[%clk 0:03:00.8]} 1... Nf6 {[%clk 0:02:58.5]} 2. Nc3 {[%clk 0:03:01.1]}
2... c5 {[%clk 0:02:59.6]} 3. g3 {[%clk 0:03:01.9]} 3... Nc6 {[%clk 0:03:00.4]}
4. Bg2 {[%clk 0:03:02.9]} 4... e6 {[%clk 0:02:59.4]} 5. Nf3 {[%clk 0:03:04.3]}
5... d5 {[%clk 0:03:00.5]} 6. cxd5 {[%clk 0:03:05.7]} 6... Nxd5 {[%clk
0:03:02.4]} 7. O-O {[%clk 0:03:05.7]} 7... Nxc3 {[%clk 0:03:02]} 8. dxc3 {[%clk
0:03:04.4]} 8... Qxd1 {[%clk 0:03:00]} 9. Rxd1 {[%clk 0:03:06.3]} 9... Bd7
{[%clk 0:03:01.9]} 10. Nd2 {[%clk 0:03:01.1]} 10... O-O-O {[%clk 0:02:58.9]} 11.
Ne4 {[%clk 0:03:00.7]} 11... f6 {[%clk 0:02:53.7]} 12. Nd6+ {[%clk 0:03:00.9]}
12... Bxd6 {[%clk 0:02:53.9]} 13. Rxd6 {[%clk 0:03:02.8]} 13... Kc7 {[%clk
0:02:55.8]} 14. Rd1 {[%clk 0:03:02.4]} 14... e5 {[%clk 0:02:56.9]} 15. Be3
{[%clk 0:03:02.9]} 15... b6 {[%clk 0:02:55.9]} 16. b4 {[%clk 0:02:38.2]} 16...
cxb4 {[%clk 0:02:51.9]} 17. cxb4 {[%clk 0:02:40.1]} 17... Nxb4 {[%clk
0:02:46.4]} 18. a3 {[%clk 0:02:27.3]} 18... Na6 {[%clk 0:02:24.2]} 19. a4 {[%clk
0:02:22.8]} 19... Bf5 {[%clk 0:02:18.8]} 20. Rdc1+ {[%clk 0:02:20.6]} 20... Kb8
{[%clk 0:02:19.9]} 21. a5 {[%clk 0:02:21.3]} 21... b5 {[%clk 0:02:20.5]} 22. Bc6
{[%clk 0:02:11.2]} 22... Nc7 {[%clk 0:02:18.4]} 23. f4 {[%clk 0:02:01.9]} 23...
Rd6 {[%clk 0:02:05.4]} 24. fxe5 {[%clk 0:01:55.6]} 24... fxe5 {[%clk 0:02:07.3]}
25. Rc5 {[%clk 0:01:52.3]} 25... Bd7 {[%clk 0:02:08.3]} 26. Bxd7 {[%clk
0:01:42.1]} 26... Rxd7 {[%clk 0:02:10.2]} 27. Rxe5 {[%clk 0:01:43.6]} 27... Re8
{[%clk 0:01:59.6]} 28. Rxe8+ {[%clk 0:01:39.8]} 28... Nxe8 {[%clk 0:02:01.5]}
29. a6 {[%clk 0:01:41.4]} 29... Nc7 {[%clk 0:01:58.6]} 30. Bf4 {[%clk
0:01:40.7]} 30... Kc8 {[%clk 0:01:54.3]} 31. Rc1 {[%clk 0:01:35.6]} 31... Kd8
{[%clk 0:01:55.3]} 32. Rc6 {[%clk 0:01:35.6]} 32... h6 {[%clk 0:01:53.5]} 33.
Kf2 {[%clk 0:01:35.8]} 33... Nd5 {[%clk 0:01:47.9]} 34. Bd6 {[%clk 0:01:31.2]}
34... Nb6 {[%clk 0:01:39.5]} 35. e4 {[%clk 0:01:29.2]} 35... Nc4 {[%clk
0:01:38.7]} 36. Bc5 {[%clk 0:01:27.4]} 36... Ne5 {[%clk 0:01:39.4]} 37. Rd6
{[%clk 0:01:14.1]} 37... Nd3+ {[%clk 0:01:40.1]} 38. Rxd3 {[%clk 0:01:14.8]}
38... Rxd3 {[%clk 0:01:40.7]} 39. Bxa7 {[%clk 0:01:16.7]} 39... Rd6 {[%clk
0:01:39.2]} 0-1

[Event "*** Titled Tuesday Blitz"]
[Site "Chess.com"]
[Date "2018.07.03"]
[Round "2"]
[White "Keures"]
[Black "Triumphmate"]
[Result "0-1"]
[WhiteElo "2136"]
[BlackElo "2223"]
[TimeControl "180+2"]
[EndTime "13:21:42 PDT"]
[Termination "Triumphmate won by resignation"]

1. d4 {[%clk 0:03:01.9]} 1... Nf6 {[%clk 0:02:59.7]} 2. c4 {[%clk 0:03:02.5]}
2... e6 {[%clk 0:03:00.2]} 3. Nf3 {[%clk 0:03:03]} 3... d5 {[%clk 0:03:00]} 4.
Nc3 {[%clk 0:03:03.3]} 4... Bb4 {[%clk 0:02:58.1]} 5. Bg5 {[%clk 0:03:03.6]}
5... h6 {[%clk 0:02:56.6]} 6. Bh4 {[%clk 0:03:03.2]} 6... O-O {[%clk 0:02:56.8]}
7. e3 {[%clk 0:03:03.8]} 7... c5 {[%clk 0:02:57.9]} 8. a3 {[%clk 0:03:02.5]}
8... Bxc3+ {[%clk 0:02:54.3]} 9. bxc3 {[%clk 0:03:03]} 9... Nc6 {[%clk 0:02:56]}
10. Be2 {[%clk 0:02:59.7]} 10... b6 {[%clk 0:02:54.6]} 11. O-O {[%clk
0:02:58.2]} 11... Bb7 {[%clk 0:02:55.4]} 12. cxd5 {[%clk 0:02:39.1]} 12... exd5
{[%clk 0:02:50.9]} 13. Rb1 {[%clk 0:02:38.3]} 13... c4 {[%clk 0:02:42.2]} 14.
Qc2 {[%clk 0:02:14.7]} 14... Re8 {[%clk 0:02:39.9]} 15. h3 {[%clk 0:02:13.4]}
15... Qd6 {[%clk 0:02:37.7]} 16. a4 {[%clk 0:02:10.9]} 16... Ne4 {[%clk
0:02:35.7]} 17. Nd2 {[%clk 0:02:06.6]} 17... Nxd2 {[%clk 0:02:34.4]} 18. Qxd2
{[%clk 0:02:07.2]} 18... Qg6 {[%clk 0:02:34.5]} 19. Bg3 {[%clk 0:02:01.8]} 19...
Na5 {[%clk 0:02:30.8]} 20. Bd1 {[%clk 0:01:46.4]} 20... Bc8 {[%clk 0:02:07.4]}
21. Bc2 {[%clk 0:01:40.9]} 21... Bf5 {[%clk 0:02:05.6]} 22. Bxf5 {[%clk
0:01:41.3]} 22... Qxf5 {[%clk 0:02:07.5]} 23. Rfe1 {[%clk 0:01:37.8]} 23... Nb3
{[%clk 0:02:06.1]} 24. Qe2 {[%clk 0:01:32.4]} 24... Re6 {[%clk 0:02:00.9]} 25.
Rb2 {[%clk 0:01:24.7]} 25... Rae8 {[%clk 0:01:59.2]} 26. Rd1 {[%clk 0:01:23]}
26... Rf6 {[%clk 0:01:49.6]} 27. Qc2 {[%clk 0:01:22.6]} 27... Qd7 {[%clk
0:01:49.8]} 28. Ra2 {[%clk 0:01:21.2]} 28... Re4 {[%clk 0:01:43.1]} 29. Re1
{[%clk 0:01:14.5]} 29... Rg6 {[%clk 0:01:32.1]} 30. Be5 {[%clk 0:01:10.1]} 30...
Qxh3 {[%clk 0:01:28.5]} 31. g3 {[%clk 0:01:04.3]} 31... Rh4 {[%clk 0:01:24.8]}
0-1

[Event "*** Titled Tuesday Blitz"]
[Site "Chess.com"]
[Date "2018.07.03"]
[Round "2"]
[White "MikaelyanArman"]
[Black "goingin33"]
[Result "1-0"]
[WhiteElo "2600"]
[BlackElo "2310"]
[TimeControl "180+2"]
[EndTime "13:21:42 PDT"]
[Termination "MikaelyanArman won by resignation"]

1. d4 {[%clk 0:03:01.9]} 1... Nf6 {[%clk 0:02:55.2]} 2. c4 {[%clk 0:03:02.5]}
2... g6 {[%clk 0:02:55.7]} 3. Nc3 {[%clk 0:03:02.7]} 3... d5 {[%clk 0:02:52.4]}
4. Bf4 {[%clk 0:03:02.9]} 4... Bg7 {[%clk 0:02:49.7]} 5. e3 {[%clk 0:03:03.2]}
5... O-O {[%clk 0:02:50.4]} 6. Nf3 {[%clk 0:03:01.9]} 6... c5 {[%clk 0:02:47.6]}
7. dxc5 {[%clk 0:02:58.8]} 7... Qa5 {[%clk 0:02:47.9]} 8. Rc1 {[%clk 0:02:55.4]}
8... dxc4 {[%clk 0:02:43.2]} 9. Bxc4 {[%clk 0:02:56.4]} 9... Qxc5 {[%clk
0:02:44.1]} 10. Bb3 {[%clk 0:02:57.3]} 10... Nc6 {[%clk 0:02:44.6]} 11. O-O
{[%clk 0:02:57.4]} 11... Qh5 {[%clk 0:02:44.9]} 12. h3 {[%clk 0:02:48.1]} 12...
Rd8 {[%clk 0:02:44.1]} 13. Qe2 {[%clk 0:02:46.4]} 13... Na5 {[%clk 0:02:32.3]}
14. Rfd1 {[%clk 0:02:11.9]} 14... Rxd1+ {[%clk 0:02:27.4]} 15. Rxd1 {[%clk
0:02:13.8]} 15... Nxb3 {[%clk 0:02:28.7]} 16. Rd8+ {[%clk 0:02:08.5]} 16... Bf8
{[%clk 0:02:29.3]} 17. axb3 {[%clk 0:02:03.7]} 17... b6 {[%clk 0:02:21.8]} 18.
Qb5 {[%clk 0:01:26.3]} 18... Qxb5 {[%clk 0:02:15.8]} 19. Nxb5 {[%clk 0:01:28.2]}
19... Bb7 {[%clk 0:02:08.8]} 20. Rxa8 {[%clk 0:01:28.2]} 20... Bxa8 {[%clk
0:02:10.7]} 21. Nxa7 {[%clk 0:01:29.5]} 21... Bd5 {[%clk 0:02:01.5]} 22. Nd4
{[%clk 0:01:26.9]} 22... Ne4 {[%clk 0:01:51.8]} 23. Nc8 {[%clk 0:01:22.7]} 23...
f6 {[%clk 0:01:44.9]} 24. Nxb6 {[%clk 0:01:22.8]} 24... Bf7 {[%clk 0:01:42.3]}
25. Bc7 {[%clk 0:01:04.6]} 25... e5 {[%clk 0:01:42.9]} 26. Nb5 {[%clk
0:01:04.5]} 26... Bxb3 {[%clk 0:01:41.5]} 27. f3 {[%clk 0:01:04.2]} 27... Nd2
{[%clk 0:01:36.8]} 28. Bd6 {[%clk 0:01:00.3]} 28... Bh6 {[%clk 0:01:33.4]} 29.
Kf2 {[%clk 0:00:59.9]} 29... Kf7 {[%clk 0:01:29.8]} 30. Na3 {[%clk 0:00:58.8]}
30... Ke6 {[%clk 0:01:19.8]} 31. Bb4 {[%clk 0:00:59.5]} 1-0

[Event "*** Titled Tuesday Blitz"]
[Site "Chess.com"]
[Date "2018.07.03"]
[Round "2"]
[White "IamSchrodingersCat"]
[Black "BasilSmash"]
[Result "0-1"]
[WhiteElo "2401"]
[BlackElo "2422"]
[TimeControl "180+2"]
[EndTime "13:21:43 PDT"]
[Termination "BasilSmash won by resignation"]

1. e4 {[%clk 0:03:01.9]} 1... c6 {[%clk 0:03:00.7]} 2. Nc3 {[%clk 0:03:02.4]}
2... d5 {[%clk 0:03:02.6]} 3. Nf3 {[%clk 0:03:03.1]} 3... Nf6 {[%clk 0:03:02.9]}
4. e5 {[%clk 0:03:03.6]} 4... Ne4 {[%clk 0:03:03.8]} 5. Ne2 {[%clk 0:03:03.3]}
5... Qb6 {[%clk 0:03:03.4]} 6. d4 {[%clk 0:03:03.2]} 6... e6 {[%clk 0:03:04.6]}
7. Nfg1 {[%clk 0:03:03]} 7... f6 {[%clk 0:03:02.3]} 8. f3 {[%clk 0:02:57]} 8...
Ng5 {[%clk 0:03:02.8]} 9. f4 {[%clk 0:02:52.2]} 9... Ne4 {[%clk 0:03:01]} 10.
Ng3 {[%clk 0:02:49.7]} 10... f5 {[%clk 0:02:45.5]} 11. Nf3 {[%clk 0:02:20.9]}
11... c5 {[%clk 0:02:40.1]} 12. Nxe4 {[%clk 0:02:00.8]} 12... dxe4 {[%clk
0:02:36.4]} 13. Ng5 {[%clk 0:01:45.4]} 13... cxd4 {[%clk 0:02:29.1]} 14. Be2
{[%clk 0:01:23.5]} 14... Nc6 {[%clk 0:02:27.3]} 15. Bd2 {[%clk 0:00:46.6]} 15...
Bd7 {[%clk 0:02:09.1]} 16. b3 {[%clk 0:00:21.3]} 16... Bb4 {[%clk 0:02:04.9]}
17. Bc4 {[%clk 0:00:18.7]} 17... e3 {[%clk 0:01:47]} 18. Bxb4 {[%clk 0:00:18.2]}
18... Qxb4+ {[%clk 0:01:48.9]} 19. Kf1 {[%clk 0:00:19.4]} 19... Qe7 {[%clk
0:01:43.8]} 20. Qh5+ {[%clk 0:00:14]} 20... g6 {[%clk 0:01:42.1]} 21. Qh6 {[%clk
0:00:14.9]} 21... O-O-O {[%clk 0:01:39.5]} 22. Ke2 {[%clk 0:00:15.3]} 22... Nb4
{[%clk 0:01:35]} 23. Rac1 {[%clk 0:00:13.3]} 23... Nxa2 {[%clk 0:01:30.7]} 24.
Ra1 {[%clk 0:00:13]} 24... Nc3+ {[%clk 0:01:30.4]} 25. Ke1 {[%clk 0:00:13.5]}
25... Kb8 {[%clk 0:01:30.3]} 0-1

[Event "*** Titled Tuesday Blitz"]
[Site "Chess.com"]
[Date "2018.07.03"]
[Round "2"]
[White "RitvarsReimanis"]
[Black "Mimsychess"]
[Result "1-0"]
[WhiteElo "2470"]
[BlackElo "2293"]
[TimeControl "180+2"]
[EndTime "13:21:57 PDT"]
[Termination "RitvarsReimanis won on time"]

1. d4 {[%clk 0:03:01.9]} 1... d5 {[%clk 0:02:59.2]} 2. c4 {[%clk 0:03:02.7]}
2... e6 {[%clk 0:03:00]} 3. Nc3 {[%clk 0:03:03.1]} 3... Be7 {[%clk 0:03:00.7]}
4. Nf3 {[%clk 0:03:03.5]} 4... Nf6 {[%clk 0:03:00.7]} 5. Qc2 {[%clk 0:03:03.9]}
5... O-O {[%clk 0:02:59]} 6. cxd5 {[%clk 0:03:03.2]} 6... exd5 {[%clk
0:02:58.5]} 7. Bg5 {[%clk 0:03:04.3]} 7... c6 {[%clk 0:02:50.3]} 8. e3 {[%clk
0:03:04.9]} 8... Nbd7 {[%clk 0:02:47.5]} 9. Bd3 {[%clk 0:03:06]} 9... Re8 {[%clk
0:02:48.6]} 10. O-O {[%clk 0:03:03.3]} 10... Ne4 {[%clk 0:02:47]} 11. Bxe7
{[%clk 0:02:58.8]} 11... Qxe7 {[%clk 0:02:48.9]} 12. Bxe4 {[%clk 0:02:57.8]}
12... dxe4 {[%clk 0:02:49.6]} 13. Nd2 {[%clk 0:02:59.2]} 13... Nf6 {[%clk
0:02:50.9]} 14. Rab1 {[%clk 0:02:53.1]} 14... Bf5 {[%clk 0:02:38.1]} 15. b4
{[%clk 0:02:50.4]} 15... Rad8 {[%clk 0:02:37.3]} 16. b5 {[%clk 0:02:49.9]} 16...
c5 {[%clk 0:02:38.6]} 17. Ne2 {[%clk 0:02:41]} 17... Rc8 {[%clk 0:02:24.2]} 18.
dxc5 {[%clk 0:02:30.7]} 18... Rxc5 {[%clk 0:02:23.8]} 19. Qa4 {[%clk 0:02:32.1]}
19... b6 {[%clk 0:02:11.7]} 20. Nb3 {[%clk 0:02:28.1]} 20... Re5 {[%clk
0:02:04.5]} 21. Nbd4 {[%clk 0:02:26.1]} 21... Bd7 {[%clk 0:02:03.3]} 22. Rfc1
{[%clk 0:02:24]} 22... Rg5 {[%clk 0:01:56.6]} 23. Nc6 {[%clk 0:02:04]} 23... Qd6
{[%clk 0:01:32]} 24. Rd1 {[%clk 0:02:00.3]} 24... Nd5 {[%clk 0:01:23.3]} 25. Nf4
{[%clk 0:01:47.2]} 25... Bxc6 {[%clk 0:00:51.8]} 26. bxc6 {[%clk 0:01:47]} 26...
Rd8 {[%clk 0:00:26.8]} 27. Qxe4 {[%clk 0:01:40.5]} 27... Qxc6 {[%clk 0:00:22]}
28. Rbc1 {[%clk 0:01:39.5]} 28... Qd7 {[%clk 0:00:06.6]} 29. Rxd5 {[%clk
0:01:35.5]} 29... Rxd5 {[%clk 0:00:06.5]} 30. Qxd5 {[%clk 0:01:31.2]} 1-0